[Event "Titled Tuesday Blitz October 11 Early 2022"]
[White "Broca Jimenez, Fernando"]
[Black "Sonnenschein, Philipp"]
[WhiteFideId "5104742"]
[BlackFideId "16250877"]
[WhiteElo "2062"]
[BlackElo "2225"]
[Result "0-1"]
[Round "03"]
[TimeControl "180+1"]
[Date "2022.10.12"]
[WhiteClock "0:00:07"]
[BlackClock "0:00:04"]

1. e4 {[%clk 0:03:00]}  c6 {[%clk 0:02:59]} 2. d4 {[%clk 0:03:00]}  d5 {[%clk 0:03:00]} 3. Nc3 {[%clk 0:03:00]}  dxe4 {[%clk 0:03:00]} 4. Nxe4 {[%clk 0:03:01]}  Nf6 {[%clk 0:03:00]} 5. Nxf6+ {[%clk 0:03:00]}  exf6 {[%clk 0:03:01]} 6. Nf3 {[%clk 0:03:00]}  Bd6 {[%clk 0:03:01]} 7. Bd3 {[%clk 0:02:56]}  O-O {[%clk 0:03:01]} 8. O-O {[%clk 0:02:56]}  Bg4 {[%clk 0:03:01]} 9. Re1 {[%clk 0:02:55]}  Nd7 {[%clk 0:03:00]} 10. h3 {[%clk 0:02:46]}  Bh5 {[%clk 0:03:00]} 11. Be3 {[%clk 0:02:40]}  Re8 {[%clk 0:02:56]} 12. g4 {[%clk 0:02:32]}  Bg6 {[%clk 0:02:56]} 13. Qd2 {[%clk 0:02:30]}  Nf8 {[%clk 0:02:43]} 14. Nh4 {[%clk 0:02:08]}  Bc7 {[%clk 0:01:59]} 15. Bxg6 {[%clk 0:01:37]}  hxg6 {[%clk 0:01:55]} 16. Ng2 {[%clk 0:01:00]}  g5 {[%clk 0:01:35]} 17. f4 {[%clk 0:00:58]}  gxf4 {[%clk 0:01:30]} 18. Bxf4 {[%clk 0:00:57]}  Bxf4 {[%clk 0:01:21]} 19. Qxf4 {[%clk 0:00:58]}  Ne6 {[%clk 0:01:15]} 20. Qf2 {[%clk 0:00:53]}  Qxd4 {[%clk 0:01:02]} 21. c3 {[%clk 0:00:35]}  Qxf2+ {[%clk 0:00:55]} 22. Kxf2 {[%clk 0:00:36]}  Nc5 {[%clk 0:00:48]} 23. Rad1 {[%clk 0:00:26]}  Rad8 {[%clk 0:00:34]} 24. Rxe8+ {[%clk 0:00:17]}  Rxe8 {[%clk 0:00:34]} 25. Ne3 {[%clk 0:00:15]}  Kf8 {[%clk 0:00:25]} 26. Nc4 {[%clk 0:00:15]}  Ke7 {[%clk 0:00:16]} 27. Nd6 {[%clk 0:00:15]}  Rb8 {[%clk 0:00:10]} 28. Nf5+ {[%clk 0:00:12]}  Kf8 {[%clk 0:00:11]} 29. Kf3 {[%clk 0:00:12]}  g6 {[%clk 0:00:11]} 30. Ne3 {[%clk 0:00:08]}  Ke7 {[%clk 0:00:11]} 31. Nc4 {[%clk 0:00:09]}  Rd8 {[%clk 0:00:08]} 32. Re1+ {[%clk 0:00:09]}  Ne6 {[%clk 0:00:07]} 33. Re2 {[%clk 0:00:07]}  Kf8 {[%clk 0:00:07]} 34. h4 {[%clk 0:00:07]}  Rd3+ {[%clk 0:00:07]} 35. Kf2 {[%clk 0:00:07]}  Rh3 {[%clk 0:00:07]} 36. h5 {[%clk 0:00:06]}  gxh5 {[%clk 0:00:08]} 37. gxh5 {[%clk 0:00:06]}  Rxh5 {[%clk 0:00:08]} 38. Rd2 {[%clk 0:00:07]}  Rf5+ {[%clk 0:00:07]} 39. Kg1 {[%clk 0:00:06]}  Ke7 {[%clk 0:00:07]} 40. Nd6 {[%clk 0:00:06]}  Rg5+ {[%clk 0:00:05]} 41. Kf1 {[%clk 0:00:05]}  b6 {[%clk 0:00:04]} 42. Nc8+ {[%clk 0:00:05]}  Kf8 {[%clk 0:00:04]} 43. Nxa7 {[%clk 0:00:06]}  Ra5 {[%clk 0:00:03]} 44. Nc8 {[%clk 0:00:06]}  Rxa2 {[%clk 0:00:03]} 45. Nxb6 {[%clk 0:00:07]}  Nc5 {[%clk 0:00:02]} 46. Nd7+ {[%clk 0:00:07]}  Nxd7 {[%clk 0:00:02]} 47. Rxd7 {[%clk 0:00:07]}  Rxb2 {[%clk 0:00:02]} 48. Rc7 {[%clk 0:00:07]}  Rb6 {[%clk 0:00:03]} 49. Kf2 {[%clk 0:00:07]}  Ke8 {[%clk 0:00:03]} 50. Ke3 {[%clk 0:00:07]}  f5 {[%clk 0:00:03]} 51. Kf4 {[%clk 0:00:07]}  Rb3 {[%clk 0:00:02]} 52. Kxf5 {[%clk 0:00:07]}  Rxc3 {[%clk 0:00:02]} 53. Ke5 {[%clk 0:00:05]}  Rc5+ {[%clk 0:00:02]} 54. Kd4 {[%clk 0:00:06]}  Rc1 {[%clk 0:00:02]} 55. Kd3 {[%clk 0:00:06]}  Kf8 {[%clk 0:00:02]} 56. Kd2 {[%clk 0:00:06]}  Rc5 {[%clk 0:00:03]} 57. Rc8+ {[%clk 0:00:07]}  Kg7 {[%clk 0:00:03]} 58. Rc7 {[%clk 0:00:08]}  Kf6 {[%clk 0:00:04]} 59. Kd3 {[%clk 0:00:08]}  Ke6 {[%clk 0:00:04]} 60. Kd4 {[%clk 0:00:09]}  Rd5+ {[%clk 0:00:05]} 61. Ke4 {[%clk 0:00:09]}  Rd6 {[%clk 0:00:05]} 62. Rc8 {[%clk 0:00:08]}  f5+ {[%clk 0:00:06]} 63. Kf4 {[%clk 0:00:08]}  Rd4+ {[%clk 0:00:06]} 64. Ke3 {[%clk 0:00:07]}  Rc4 {[%clk 0:00:06]} 65. Re8+ {[%clk 0:00:06]}  Kd5 {[%clk 0:00:07]} 66. Rf8 {[%clk 0:00:07]}  f4+ {[%clk 0:00:07]} 67. Kd3 {[%clk 0:00:07]}  Kc5 {[%clk 0:00:05]} 68. Rf5+ {[%clk 0:00:06]}  Kb4 {[%clk 0:00:06]} 69. Rf8 {[%clk 0:00:06]}  Rc3+ {[%clk 0:00:05]} 70. Kd4 {[%clk 0:00:05]}  Rc1 {[%clk 0:00:02]} 71. Rb8+ {[%clk 0:00:05]}  Ka3 {[%clk 0:00:02]} 72. Ke4 {[%clk 0:00:05]}  c5 {[%clk 0:00:02]} 73. Kxf4 {[%clk 0:00:05]}  Rd1 {[%clk 0:00:02]} 74. Ke3 {[%clk 0:00:06]}  c4 {[%clk 0:00:02]} 75. Ke2 {[%clk 0:00:06]}  Rd7 {[%clk 0:00:02]} 76. Ke3 {[%clk 0:00:07]}  c3 {[%clk 0:00:02]} 77. Ke2 {[%clk 0:00:07]}  c2 {[%clk 0:00:03]} 78. Rc8 {[%clk 0:00:07]}  Kb2 {[%clk 0:00:03]} 79. Rb8+ {[%clk 0:00:08]}  Kc1 {[%clk 0:00:03]} 80. Rc8 {[%clk 0:00:08]}  Rd5 {[%clk 0:00:03]} 81. Rb8 {[%clk 0:00:08]}  Re5+ {[%clk 0:00:03]} 82. Kf2 {[%clk 0:00:07]}  Kd2 {[%clk 0:00:03]} 83. Rd8+ {[%clk 0:00:07]}  Kc3 {[%clk 0:00:03]} 84. Rc8+ {[%clk 0:00:08]}  Kd3 {[%clk 0:00:04]} 85. Rd8+ {[%clk 0:00:08]}  Kc4 {[%clk 0:00:04]} 86. Rd1 {[%clk 0:00:07]}  cxd1=Q {[%clk 0:00:04]} 0-1


[Site "https://www.chess.com"]

[Event "Titled Tuesday Blitz October 11 Early 2022"]
[White "Buscar, Michael"]
[Black "Fajdetic, Hrvoje"]
[WhiteFideId "2603616"]
[BlackFideId "14501945"]
[WhiteElo "2010"]
[BlackElo "2172"]
[Result "0-1"]
[Round "03"]
[TimeControl "180+1"]
[Date "2022.10.12"]
[WhiteClock "0:00:21"]
[BlackClock "0:00:13"]

1. Nf3 {[%clk 0:02:42]}  d5 {[%clk 0:02:31]} 2. g3 {[%clk 0:02:41]}  Nf6 {[%clk 0:02:26]} 3. Bg2 {[%clk 0:02:34]}  Bg4 {[%clk 0:02:22]} 4. c4 {[%clk 0:02:32]}  c6 {[%clk 0:02:20]} 5. O-O {[%clk 0:02:32]}  Qc8 {[%clk 0:02:17]} 6. Re1 {[%clk 0:02:31]}  Bh3 {[%clk 0:02:17]} 7. Bh1 {[%clk 0:02:30]}  h6 {[%clk 0:02:14]} 8. b3 {[%clk 0:02:30]}  g5 {[%clk 0:02:07]} 9. Ba3 {[%clk 0:02:29]}  Bg7 {[%clk 0:02:04]} 10. d4 {[%clk 0:02:22]}  Ne4 {[%clk 0:01:51]} 11. Nbd2 {[%clk 0:02:21]}  Nxd2 {[%clk 0:01:45]} 12. Qxd2 {[%clk 0:02:19]}  f5 {[%clk 0:01:31]} 13. cxd5 {[%clk 0:02:04]}  cxd5 {[%clk 0:01:32]} 14. Ne5 {[%clk 0:02:04]}  Qe6 {[%clk 0:01:02]} 15. Rac1 {[%clk 0:01:54]}  Nc6 {[%clk 0:01:01]} 16. Nxc6 {[%clk 0:01:29]}  bxc6 {[%clk 0:01:02]} 17. e3 {[%clk 0:01:30]}  O-O {[%clk 0:00:57]} 18. Qb4 {[%clk 0:01:28]}  Bf6 {[%clk 0:00:31]} 19. Qa4 {[%clk 0:01:14]}  Rfc8 {[%clk 0:00:26]} 20. Rc2 {[%clk 0:01:07]}  Rc7 {[%clk 0:00:21]} 21. Rec1 {[%clk 0:01:06]}  Rac8 {[%clk 0:00:21]} 22. Qa5 {[%clk 0:01:00]}  f4 {[%clk 0:00:19]} 23. Bxd5 {[%clk 0:00:57]}  cxd5 {[%clk 0:00:15]} 24. Rxc7 {[%clk 0:00:56]}  Rxc7 {[%clk 0:00:15]} 25. Qxc7 {[%clk 0:00:43]}  Qe4 {[%clk 0:00:13]} 26. f3 {[%clk 0:00:24]}  Qxe3+ {[%clk 0:00:12]} 27. Kh1 {[%clk 0:00:21]}  Qxf3+ {[%clk 0:00:13]} 28. Kg1 {[%clk 0:00:21]}  Qg2# {[%clk 0:00:13]} 0-1


[Site "https://www.chess.com"]

[Event "Titled Tuesday Blitz October 11 Early 2022"]
[White "Bychkov, Vladimir"]
[Black "Shandrygin, Nikita"]
[WhiteFideId "24151513"]
[BlackFideId "24198668"]
[WhiteElo "2197"]
[BlackElo "2323"]
[Result "1-0"]
[Round "03"]
[TimeControl "180+1"]
[Date "2022.10.12"]
[WhiteClock "0:00:58"]
[BlackClock "0:00:03"]

1. d4 {[%clk 0:03:00]}  Nf6 {[%clk 0:03:00]} 2. Nf3 {[%clk 0:02:59]}  e6 {[%clk 0:02:57]} 3. g3 {[%clk 0:02:59]}  d5 {[%clk 0:02:54]} 4. Bg2 {[%clk 0:02:59]}  Be7 {[%clk 0:02:55]} 5. O-O {[%clk 0:02:59]}  O-O {[%clk 0:02:56]} 6. c4 {[%clk 0:02:59]}  c6 {[%clk 0:02:55]} 7. Qc2 {[%clk 0:02:59]}  b6 {[%clk 0:02:55]} 8. Rd1 {[%clk 0:02:59]}  Nbd7 {[%clk 0:02:53]} 9. b3 {[%clk 0:02:56]}  Bb7 {[%clk 0:02:49]} 10. Bb2 {[%clk 0:02:56]}  Rc8 {[%clk 0:02:50]} 11. Nc3 {[%clk 0:02:53]}  c5 {[%clk 0:02:43]} 12. e3 {[%clk 0:02:39]}  cxd4 {[%clk 0:02:40]} 13. Rxd4 {[%clk 0:02:37]}  e5 {[%clk 0:02:35]} 14. Rdd1 {[%clk 0:02:30]}  dxc4 {[%clk 0:02:32]} 15. Nxe5 {[%clk 0:02:30]}  Bxg2 {[%clk 0:02:31]} 16. Nxd7 {[%clk 0:02:19]}  Nxd7 {[%clk 0:02:30]} 17. Kxg2 {[%clk 0:02:14]}  Qe8 {[%clk 0:01:58]} 18. Qf5 {[%clk 0:02:04]}  Nf6 {[%clk 0:01:53]} 19. e4 {[%clk 0:01:59]}  Qc6 {[%clk 0:01:38]} 20. Nd5 {[%clk 0:01:56]}  Nxd5 {[%clk 0:01:11]} 21. exd5 {[%clk 0:01:57]}  Qb5 {[%clk 0:01:11]} 22. Qg4 {[%clk 0:01:32]}  c3 {[%clk 0:01:08]} 23. Rac1 {[%clk 0:01:22]}  Bf6 {[%clk 0:01:01]} 24. Ba3 {[%clk 0:01:19]}  Rfd8 {[%clk 0:00:59]} 25. d6 {[%clk 0:01:18]}  Qa5 {[%clk 0:00:31]} 26. Bb4 {[%clk 0:01:02]}  Qxa2 {[%clk 0:00:29]} 27. d7 {[%clk 0:01:00]}  Rc7 {[%clk 0:00:14]} 28. Re1 {[%clk 0:01:00]}  h6 {[%clk 0:00:03]} 29. Re8+ {[%clk 0:00:58]}  Kh7 {[%clk 0:00:03]} 30. Qf5+ {[%clk 0:00:58]} 1-0


[Site "https://www.chess.com"]

[Event "Titled Tuesday Blitz October 11 Early 2022"]
[White "Chernobay, Artem"]
[Black "Devaev, Alexander"]
[WhiteFideId "4167406"]
[BlackFideId "4169395"]
[WhiteElo "2473"]
[BlackElo "2225"]
[Result "1-0"]
[Round "03"]
[TimeControl "180+1"]
[Date "2022.10.12"]
[WhiteClock "0:00:43"]
[BlackClock "0:00:17"]

1. e4 {[%clk 0:02:59]}  c6 {[%clk 0:03:00]} 2. d4 {[%clk 0:02:58]}  d5 {[%clk 0:03:00]} 3. Nd2 {[%clk 0:02:58]}  dxe4 {[%clk 0:02:59]} 4. Nxe4 {[%clk 0:02:59]}  Bf5 {[%clk 0:02:59]} 5. Ng3 {[%clk 0:02:59]}  Bg6 {[%clk 0:03:00]} 6. h4 {[%clk 0:03:00]}  h6 {[%clk 0:03:01]} 7. Nf3 {[%clk 0:02:59]}  Nd7 {[%clk 0:03:01]} 8. h5 {[%clk 0:02:59]}  Bh7 {[%clk 0:03:01]} 9. Bd3 {[%clk 0:02:58]}  Bxd3 {[%clk 0:03:02]} 10. Qxd3 {[%clk 0:02:59]}  Qc7 {[%clk 0:03:03]} 11. Bd2 {[%clk 0:02:56]}  e6 {[%clk 0:03:03]} 12. O-O-O {[%clk 0:02:56]}  Ngf6 {[%clk 0:03:04]} 13. Ne4 {[%clk 0:02:55]}  O-O-O {[%clk 0:03:04]} 14. c4 {[%clk 0:02:50]}  c5 {[%clk 0:03:03]} 15. Kb1 {[%clk 0:02:38]}  cxd4 {[%clk 0:02:53]} 16. Nxf6 {[%clk 0:02:25]}  Nxf6 {[%clk 0:02:50]} 17. Rh4 {[%clk 0:02:25]}  Bc5 {[%clk 0:02:40]} 18. b4 {[%clk 0:02:19]}  Be7 {[%clk 0:02:39]} 19. Ka1 {[%clk 0:02:09]}  Nd7 {[%clk 0:01:16]} 20. c5 {[%clk 0:02:03]}  e5 {[%clk 0:01:08]} 21. Qf5 {[%clk 0:01:59]}  Bxh4 {[%clk 0:01:07]} 22. Nxh4 {[%clk 0:01:57]}  f6 {[%clk 0:01:08]} 23. Ng6 {[%clk 0:01:57]}  Rhe8 {[%clk 0:01:08]} 24. f3 {[%clk 0:01:53]}  Kb8 {[%clk 0:01:05]} 25. Rc1 {[%clk 0:01:53]}  Ka8 {[%clk 0:01:06]} 26. Qe4 {[%clk 0:01:46]}  Nf8 {[%clk 0:01:04]} 27. Nh4 {[%clk 0:01:41]}  Ne6 {[%clk 0:01:04]} 28. Nf5 {[%clk 0:01:40]}  Qc6 {[%clk 0:00:59]} 29. Qd3 {[%clk 0:01:38]}  Qd5 {[%clk 0:00:56]} 30. Qb5 {[%clk 0:01:30]}  Qc6 {[%clk 0:00:51]} 31. Qc4 {[%clk 0:01:28]}  Qd5 {[%clk 0:00:51]} 32. Qb5 {[%clk 0:01:27]}  a6 {[%clk 0:00:51]} 33. Qa5 {[%clk 0:01:23]}  Qc6 {[%clk 0:00:49]} 34. Nd6 {[%clk 0:01:18]}  Rxd6 {[%clk 0:00:48]} 35. cxd6 {[%clk 0:01:17]}  Qxd6 {[%clk 0:00:45]} 36. b5 {[%clk 0:01:15]}  Qd5 {[%clk 0:00:46]} 37. Rb1 {[%clk 0:01:08]}  Re7 {[%clk 0:00:37]} 38. Qa4 {[%clk 0:00:53]}  Nc7 {[%clk 0:00:31]} 39. b6 {[%clk 0:00:46]}  Nb5 {[%clk 0:00:26]} 40. Rc1 {[%clk 0:00:45]}  d3 {[%clk 0:00:17]} 41. Rc8# {[%clk 0:00:43]} 1-0


[Site "https://www.chess.com"]

[Event "Titled Tuesday Blitz October 11 Early 2022"]
[White "Chigaev, Maksim"]
[Black "Ernst, Sipke"]
[WhiteFideId "4108116"]
[BlackFideId "1004689"]
[WhiteElo "2537"]
[BlackElo "2438"]
[Result "1-0"]
[Round "03"]
[TimeControl "180+1"]
[Date "2022.10.12"]
[WhiteClock "0:00:10"]
[BlackClock "0:00:12"]

1. e4 {[%clk 0:03:00]}  e5 {[%clk 0:02:59]} 2. Nf3 {[%clk 0:02:58]}  Nc6 {[%clk 0:02:59]} 3. Nc3 {[%clk 0:02:57]}  Nf6 {[%clk 0:02:59]} 4. h3 {[%clk 0:02:58]}  d5 {[%clk 0:02:58]} 5. exd5 {[%clk 0:02:59]}  Nxd5 {[%clk 0:02:58]} 6. Bb5 {[%clk 0:02:59]}  Nxc3 {[%clk 0:02:58]} 7. bxc3 {[%clk 0:03:00]}  Bd6 {[%clk 0:02:58]} 8. O-O {[%clk 0:03:00]}  O-O {[%clk 0:02:58]} 9. d4 {[%clk 0:03:01]}  Bd7 {[%clk 0:02:51]} 10. Rb1 {[%clk 0:02:51]}  Rb8 {[%clk 0:02:44]} 11. Re1 {[%clk 0:02:43]}  Re8 {[%clk 0:02:41]} 12. dxe5 {[%clk 0:02:22]}  Nxe5 {[%clk 0:02:28]} 13. Nxe5 {[%clk 0:01:38]}  Bxb5 {[%clk 0:02:11]} 14. Rxb5 {[%clk 0:01:36]}  c6 {[%clk 0:01:54]} 15. Nxf7 {[%clk 0:01:30]}  Rxe1+ {[%clk 0:01:49]} 16. Qxe1 {[%clk 0:01:31]}  Kxf7 {[%clk 0:01:48]} 17. Rf5+ {[%clk 0:01:27]}  Kg8 {[%clk 0:01:49]} 18. Qe6+ {[%clk 0:01:27]}  Kh8 {[%clk 0:01:49]} 19. Bg5 {[%clk 0:01:28]}  Qc7 {[%clk 0:01:41]} 20. Rf7 {[%clk 0:00:54]}  Bh2+ {[%clk 0:01:41]} 21. Kf1 {[%clk 0:00:47]}  Qe5 {[%clk 0:01:39]} 22. Qxe5 {[%clk 0:00:37]}  Bxe5 {[%clk 0:01:39]} 23. c4 {[%clk 0:00:37]}  h6 {[%clk 0:01:39]} 24. Be3 {[%clk 0:00:37]}  a6 {[%clk 0:01:17]} 25. Bb6 {[%clk 0:00:36]}  Kg8 {[%clk 0:01:08]} 26. Rd7 {[%clk 0:00:35]}  Bc3 {[%clk 0:00:55]} 27. Ke2 {[%clk 0:00:30]}  Kf8 {[%clk 0:00:54]} 28. Kd3 {[%clk 0:00:29]}  Bb4 {[%clk 0:00:53]} 29. c5 {[%clk 0:00:25]}  Be1 {[%clk 0:00:50]} 30. f3 {[%clk 0:00:15]}  Bh4 {[%clk 0:00:45]} 31. Bc7 {[%clk 0:00:10]}  Re8 {[%clk 0:00:38]} 32. Bd6+ {[%clk 0:00:10]}  Kg8 {[%clk 0:00:38]} 33. Rxb7 {[%clk 0:00:10]}  Re1 {[%clk 0:00:38]} 34. Rb6 {[%clk 0:00:11]}  Rd1+ {[%clk 0:00:33]} 35. Ke2 {[%clk 0:00:10]}  Rc1 {[%clk 0:00:33]} 36. Kd2 {[%clk 0:00:11]}  Rg1 {[%clk 0:00:31]} 37. g4 {[%clk 0:00:11]}  Rg2+ {[%clk 0:00:30]} 38. Kd3 {[%clk 0:00:11]}  Rf2 {[%clk 0:00:30]} 39. Rxc6 {[%clk 0:00:11]}  Rxf3+ {[%clk 0:00:31]} 40. Kc4 {[%clk 0:00:11]}  Rxh3 {[%clk 0:00:27]} 41. Rxa6 {[%clk 0:00:12]}  Be1 {[%clk 0:00:21]} 42. c6 {[%clk 0:00:11]}  Rc3+ {[%clk 0:00:21]} 43. Kd5 {[%clk 0:00:11]}  Rxc2 {[%clk 0:00:20]} 44. c7 {[%clk 0:00:10]}  Kh7 {[%clk 0:00:12]} 45. Rc6 {[%clk 0:00:10]} 1-0


[Site "https://www.chess.com"]

[Event "Titled Tuesday Blitz October 11 Early 2022"]
[White "D`Arruda, Ricardo D."]
[Black "Mirzoev, Azer"]
[WhiteFideId "100692"]
[BlackFideId "13400304"]
[WhiteElo "2430"]
[BlackElo "2525"]
[Result "0-1"]
[Round "03"]
[TimeControl "180+1"]
[Date "2022.10.12"]
[WhiteClock "0:00:31"]
[BlackClock "0:01:41"]

1. d4 {[%clk 0:02:22]}  c6 {[%clk 0:02:58]} 2. e4 {[%clk 0:02:21]}  d5 {[%clk 0:02:58]} 3. Nc3 {[%clk 0:02:21]}  dxe4 {[%clk 0:02:58]} 4. Nxe4 {[%clk 0:02:21]}  Bf5 {[%clk 0:02:58]} 5. Ng3 {[%clk 0:02:21]}  Bg6 {[%clk 0:02:58]} 6. Nf3 {[%clk 0:02:21]}  e6 {[%clk 0:02:57]} 7. Bd3 {[%clk 0:02:20]}  Nf6 {[%clk 0:02:56]} 8. O-O {[%clk 0:02:19]}  c5 {[%clk 0:02:54]} 9. Bxg6 {[%clk 0:02:17]}  hxg6 {[%clk 0:02:54]} 10. dxc5 {[%clk 0:02:17]}  Bxc5 {[%clk 0:02:51]} 11. Qxd8+ {[%clk 0:02:16]}  Kxd8 {[%clk 0:02:50]} 12. Bf4 {[%clk 0:02:10]}  Ke7 {[%clk 0:02:49]} 13. Rad1 {[%clk 0:01:58]}  Nc6 {[%clk 0:02:48]} 14. Ne5 {[%clk 0:01:53]}  Nxe5 {[%clk 0:02:43]} 15. Bxe5 {[%clk 0:01:54]}  Rad8 {[%clk 0:02:36]} 16. c3 {[%clk 0:01:48]}  Bxf2+ {[%clk 0:02:29]} 17. Kxf2 {[%clk 0:01:43]}  Ng4+ {[%clk 0:02:29]} 18. Kg1 {[%clk 0:01:43]}  Nxe5 {[%clk 0:02:30]} 19. Ne4 {[%clk 0:01:36]}  Nc4 {[%clk 0:02:25]} 20. Rxd8 {[%clk 0:01:27]}  Rxd8 {[%clk 0:02:24]} 21. b3 {[%clk 0:01:28]}  Nd2 {[%clk 0:02:19]} 22. Nxd2 {[%clk 0:01:05]}  Rxd2 {[%clk 0:02:20]} 23. Rf2 {[%clk 0:01:05]}  Rd1+ {[%clk 0:02:19]} 24. Rf1 {[%clk 0:01:05]}  Rxf1+ {[%clk 0:02:19]} 25. Kxf1 {[%clk 0:01:06]}  e5 {[%clk 0:02:18]} 26. Ke2 {[%clk 0:01:04]}  f5 {[%clk 0:02:18]} 27. c4 {[%clk 0:01:02]}  g5 {[%clk 0:02:14]} 28. c5 {[%clk 0:00:48]}  Ke6 {[%clk 0:02:13]} 29. b4 {[%clk 0:00:49]}  Kd5 {[%clk 0:02:13]} 30. Kd3 {[%clk 0:00:46]}  e4+ {[%clk 0:02:10]} 31. Kc3 {[%clk 0:00:46]}  f4 {[%clk 0:02:05]} 32. a3 {[%clk 0:00:45]}  g4 {[%clk 0:01:56]} 33. Kd2 {[%clk 0:00:39]}  Kc4 {[%clk 0:01:50]} 34. Ke2 {[%clk 0:00:32]}  a6 {[%clk 0:01:48]} 35. Kd2 {[%clk 0:00:31]}  Kb3 {[%clk 0:01:41]} 0-1


[Site "https://www.chess.com"]

[Event "Titled Tuesday Blitz October 11 Early 2022"]
[White "De Souza, Cristiano Gomes"]
[Black "Chernomordik, Pavel"]
[WhiteFideId "2151758"]
[BlackFideId "2804530"]
[WhiteElo "2068"]
[BlackElo "2217"]
[Result "0-1"]
[Round "03"]
[TimeControl "180+1"]
[Date "2022.10.12"]
[WhiteClock "0:01:07"]
[BlackClock "0:00:47"]

1. d4 {[%clk 0:02:55]}  g6 {[%clk 0:03:00]} 2. c4 {[%clk 0:02:55]}  Bg7 {[%clk 0:02:58]} 3. Nf3 {[%clk 0:02:56]}  d6 {[%clk 0:02:58]} 4. h3 {[%clk 0:02:54]}  c6 {[%clk 0:02:55]} 5. Nc3 {[%clk 0:02:54]}  a6 {[%clk 0:02:55]} 6. e4 {[%clk 0:02:54]}  b5 {[%clk 0:02:54]} 7. a3 {[%clk 0:02:54]}  Nd7 {[%clk 0:02:51]} 8. Bd2 {[%clk 0:02:53]}  Nb6 {[%clk 0:02:34]} 9. cxb5 {[%clk 0:02:41]}  axb5 {[%clk 0:02:32]} 10. d5 {[%clk 0:02:39]}  Bd7 {[%clk 0:02:10]} 11. dxc6 {[%clk 0:02:39]}  Bxc6 {[%clk 0:02:09]} 12. Rb1 {[%clk 0:02:17]}  Nc4 {[%clk 0:02:01]} 13. Bxc4 {[%clk 0:02:15]}  bxc4 {[%clk 0:02:00]} 14. O-O {[%clk 0:02:15]}  Nf6 {[%clk 0:01:48]} 15. Qe2 {[%clk 0:02:15]}  Rc8 {[%clk 0:01:45]} 16. Nd4 {[%clk 0:02:11]}  Bb7 {[%clk 0:01:41]} 17. f3 {[%clk 0:02:06]}  Nxe4 {[%clk 0:01:35]} 18. Nxe4 {[%clk 0:02:00]}  Bxd4+ {[%clk 0:01:34]} 19. Be3 {[%clk 0:02:00]}  Qb6 {[%clk 0:01:33]} 20. Bxd4 {[%clk 0:01:57]}  Qxd4+ {[%clk 0:01:33]} 21. Kh1 {[%clk 0:01:57]}  Bxe4 {[%clk 0:01:32]} 22. fxe4 {[%clk 0:01:57]}  O-O {[%clk 0:01:31]} 23. Rbc1 {[%clk 0:01:55]}  Rb8 {[%clk 0:01:24]} 24. Rc2 {[%clk 0:01:54]}  Rfc8 {[%clk 0:01:23]} 25. Rd1 {[%clk 0:01:54]}  Qe5 {[%clk 0:01:19]} 26. Rd5 {[%clk 0:01:52]}  Qf6 {[%clk 0:01:17]} 27. e5 {[%clk 0:01:51]}  dxe5 {[%clk 0:01:16]} 28. Rxe5 {[%clk 0:01:51]}  e6 {[%clk 0:01:15]} 29. Re4 {[%clk 0:01:51]}  c3 {[%clk 0:01:13]} 30. Rxc3 {[%clk 0:01:43]}  Rxc3 {[%clk 0:01:12]} 31. bxc3 {[%clk 0:01:43]}  Qxc3 {[%clk 0:01:11]} 32. Re3 {[%clk 0:01:43]}  Rb1+ {[%clk 0:01:07]} 33. Kh2 {[%clk 0:01:43]}  Qc7+ {[%clk 0:01:07]} 34. g3 {[%clk 0:01:42]}  Rc1 {[%clk 0:01:06]} 35. Qf2 {[%clk 0:01:36]}  Qc4 {[%clk 0:01:03]} 36. Re2 {[%clk 0:01:32]}  Rc3 {[%clk 0:01:02]} 37. Ra2 {[%clk 0:01:22]}  Qd5 {[%clk 0:00:56]} 38. a4 {[%clk 0:01:19]}  Rf3 {[%clk 0:00:54]} 39. Qg2 {[%clk 0:01:16]}  Qb3 {[%clk 0:00:51]} 40. a5 {[%clk 0:01:15]}  Rxg3 {[%clk 0:00:51]} 41. Qxg3 {[%clk 0:01:08]}  Qxa2+ {[%clk 0:00:49]} 42. Kg1 {[%clk 0:01:07]}  Qxa5 {[%clk 0:00:48]} 43. Qb8+ {[%clk 0:01:08]}  Kg7 {[%clk 0:00:48]} 44. Qe5+ {[%clk 0:01:07]}  Qxe5 {[%clk 0:00:47]} 0-1


[Site "https://www.chess.com"]

[Event "Titled Tuesday Blitz October 11 Early 2022"]
[White "Dehtiarov, Roman"]
[Black "Mihailidis, Anastasios"]
[WhiteFideId "14186640"]
[BlackFideId "4205588"]
[WhiteElo "2200"]
[BlackElo "2312"]
[Result "1/2-1/2"]
[Round "03"]
[TimeControl "180+1"]
[Date "2022.10.12"]
[WhiteClock "0:00:07"]
[BlackClock "0:00:10"]

1. e4 {[%clk 0:02:57]}  c5 {[%clk 0:02:57]} 2. Nc3 {[%clk 0:02:56]}  Nc6 {[%clk 0:02:57]} 3. f4 {[%clk 0:02:56]}  g6 {[%clk 0:02:56]} 4. Nf3 {[%clk 0:02:55]}  Bg7 {[%clk 0:02:56]} 5. Bb5 {[%clk 0:02:53]}  Nd4 {[%clk 0:02:54]} 6. O-O {[%clk 0:02:53]}  a6 {[%clk 0:02:51]} 7. Bd3 {[%clk 0:02:52]}  e6 {[%clk 0:02:47]} 8. e5 {[%clk 0:02:52]}  Nxf3+ {[%clk 0:02:46]} 9. Qxf3 {[%clk 0:02:52]}  d5 {[%clk 0:02:45]} 10. exd6 {[%clk 0:02:34]}  Qxd6 {[%clk 0:02:44]} 11. Ne4 {[%clk 0:02:34]}  Qc7 {[%clk 0:02:38]} 12. c3 {[%clk 0:02:33]}  Ne7 {[%clk 0:02:37]} 13. Bc2 {[%clk 0:02:33]}  O-O {[%clk 0:02:37]} 14. d3 {[%clk 0:02:33]}  Bd7 {[%clk 0:02:35]} 15. Be3 {[%clk 0:02:32]}  b6 {[%clk 0:02:35]} 16. Rad1 {[%clk 0:02:30]}  Bc6 {[%clk 0:02:35]} 17. Qf2 {[%clk 0:02:26]}  Nf5 {[%clk 0:02:28]} 18. Rfe1 {[%clk 0:02:16]}  Bxe4 {[%clk 0:02:12]} 19. dxe4 {[%clk 0:02:16]}  Nxe3 {[%clk 0:02:12]} 20. Qxe3 {[%clk 0:02:16]}  Rfd8 {[%clk 0:02:12]} 21. e5 {[%clk 0:02:15]}  Bf8 {[%clk 0:02:06]} 22. Be4 {[%clk 0:02:05]}  Rab8 {[%clk 0:02:04]} 23. h4 {[%clk 0:01:59]}  h5 {[%clk 0:01:54]} 24. Qf3 {[%clk 0:01:44]}  Be7 {[%clk 0:01:52]} 25. g3 {[%clk 0:01:36]}  Rxd1 {[%clk 0:01:51]} 26. Rxd1 {[%clk 0:01:35]}  Rd8 {[%clk 0:01:51]} 27. Kg2 {[%clk 0:01:32]}  Rd7 {[%clk 0:01:36]} 28. Qe2 {[%clk 0:01:21]}  b5 {[%clk 0:01:31]} 29. Rxd7 {[%clk 0:01:06]}  Qxd7 {[%clk 0:01:32]} 30. Bf3 {[%clk 0:01:05]}  Kg7 {[%clk 0:01:20]} 31. a4 {[%clk 0:00:57]}  c4 {[%clk 0:01:13]} 32. axb5 {[%clk 0:00:55]}  Qxb5 {[%clk 0:01:00]} 33. Kh3 {[%clk 0:00:54]}  a5 {[%clk 0:00:45]} 34. g4 {[%clk 0:00:52]}  hxg4+ {[%clk 0:00:44]} 35. Kxg4 {[%clk 0:00:53]}  Qc5 {[%clk 0:00:39]} 36. Bg2 {[%clk 0:00:47]}  Qg1 {[%clk 0:00:32]} 37. Kh3 {[%clk 0:00:38]}  Qc5 {[%clk 0:00:26]} 38. h5 {[%clk 0:00:37]}  gxh5 {[%clk 0:00:25]} 39. Qxh5 {[%clk 0:00:33]}  Qe3+ {[%clk 0:00:25]} 40. Qf3 {[%clk 0:00:34]}  Qxf3+ {[%clk 0:00:21]} 41. Bxf3 {[%clk 0:00:35]}  a4 {[%clk 0:00:21]} 42. Be2 {[%clk 0:00:19]}  a3 {[%clk 0:00:21]} 43. Bxc4 {[%clk 0:00:12]}  axb2 {[%clk 0:00:19]} 44. Bd3 {[%clk 0:00:12]}  f6 {[%clk 0:00:17]} 45. exf6+ {[%clk 0:00:08]}  Kxf6 {[%clk 0:00:17]} 46. Kg4 {[%clk 0:00:08]}  Bc5 {[%clk 0:00:16]} 47. Kf3 {[%clk 0:00:08]}  e5 {[%clk 0:00:15]} 48. fxe5+ {[%clk 0:00:08]}  Kxe5 {[%clk 0:00:16]} 49. Ke2 {[%clk 0:00:08]}  Bb6 {[%clk 0:00:13]} 50. Kd1 {[%clk 0:00:06]}  Ba5 {[%clk 0:00:13]} 51. c4 {[%clk 0:00:04]}  Kd4 {[%clk 0:00:10]} 52. Kc2 {[%clk 0:00:05]}  b1=Q+ {[%clk 0:00:10]} 53. Kxb1 {[%clk 0:00:06]}  Kxd3 {[%clk 0:00:11]} 54. c5 {[%clk 0:00:06]}  Kc4 {[%clk 0:00:10]} 55. c6 {[%clk 0:00:07]}  Kc5 {[%clk 0:00:11]} 56. Kc2 {[%clk 0:00:07]}  Kxc6 {[%clk 0:00:10]} 1/2-1/2


[Site "https://www.chess.com"]